bitfinex-derivatives/quotes_BNBF0:USTF0_20250630
["timestamp","ask_amount","ask_price","bid_price","bid_amount"]
[1751320053284,2.26745088,658.77,658.28,1.03794242]
[1751320053484,2.26745088,658.77,658.29,1.03794242]
[1751320053785,2.26745088,658.77,658.3,1.03794242]
[1751320053985,2.26745088,658.77,658.31,1.03794242]
[1751320054286,2.26745088,658.77,658.18,2.343]
[1751320054480,2.26745088,658.77,658.19,1.0379415]
[1751320054781,2.26745088,658.77,658.2,1.0379415]
[1751320054983,2.26745088,658.77,658.21,1.0379415]
[1751320055184,2.26745088,658.77,658.22,1.0379415]
[1751320055386,2.26745088,658.77,658.23,1.0379415]
[1751320055580,2.26745088,658.77,658.24,1.0379415]
[1751320055785,2.26745088,658.67,658.25,1.0379415]
[1751320055981,2.26745088,658.67,658.18,2.343]
[1751320055982,2.26745088,658.67,658.26,1.0379415]
[1751320056281,2.26745088,658.67,658.27,1.0379415]
[1751320056484,2.26745088,658.67,658.28,1.0379415]
[1751320056681,2.26745088,658.67,658.29,1.0379415]
[1751320056881,2.26745088,658.67,658.3,1.0379415]
[1751320057082,2.26745088,658.68,658.31,1.0379415]
[1751320057280,2.26745088,658.68,658.18,2.343]
[1751320057484,2.26745088,658.68,658.19,1.03794013]
[1751320057683,2.26745088,658.68,658.2,1.03794013]
[1751320057882,0.26425295,658.88,658.21,1.03794013]
[1751320057883,2.26745088,658.77,658.21,1.03794013]
[1751320058083,2.26745088,658.77,658.22,1.03794013]
[1751320058288,2.26745088,658.77,658.23,1.03794013]
[1751320058588,2.26745088,658.77,658.24,1.03794013]
[1751320058787,2.26745088,658.8,658.25,1.03794013]
[1751320059083,2.26745088,658.8,658.26,1.03794013]
[1751320059287,2.26745088,658.81,658.27,1.03794013]
[1751320059487,2.26745088,658.81,658.28,1.03794013]
[1751320059686,2.26745088,658.81,658.29,1.03794013]
[1751320059884,2.26745088,658.81,658.3,1.03794013]
[1751320060087,2.26745088,658.81,658.31,1.03794013]
[1751320060284,2.26745088,658.81,658.32,1.03794013]
[1751320060488,2.26745088,658.81,658.33,1.03794013]
[1751320060688,2.26745088,658.81,658.34,1.03794013]
[1751320060988,2.26745088,658.81,658.2,2.133]
[1751320061286,2.26745088,658.81,658.21,1.03769685]
[1751320061488,2.26745088,658.81,658.22,1.03769685]
[1751320061684,2.26745088,658.81,658.23,1.03769685]
[1751320061888,2.26745088,658.81,658.24,1.03769685]
[1751320062088,2.26745088,658.81,658.25,1.03769685]
[1751320062285,2.26745088,658.81,658.26,1.03769685]
[1751320062484,2.26745088,658.81,658.27,1.03769685]
[1751320062689,2.26745088,658.81,658.28,1.03769685]
[1751320062891,2.26745088,658.81,658.29,1.03769685]
[1751320063190,2.26745088,658.81,658.3,1.03769685]
[1751320063389,2.26745088,658.81,658.31,1.03769685]
[1751320063685,2.26745088,658.81,658.32,1.03769685]
[1751320063886,2.26745088,658.8,658.33,1.03769685]
[1751320064086,2.26745088,658.8,658.2,2.133]
[1751320064291,2.26745088,658.81,658.21,1.03752946]
[1751320064492,2.26745088,658.81,658.22,1.03752946]
[1751320064788,2.26745088,658.8,658.23,1.03752946]
[1751320064996,2.26745088,658.8,658.24,1.03752946]
[1751320065189,2.26745088,658.8,658.25,1.03752946]
[1751320065390,2.26745088,658.81,658.26,1.03752946]
[1751320065588,2.26745088,658.81,658.27,1.03752946]
[1751320065793,2.26745088,658.81,658.28,1.03752946]
[1751320065993,2.26745088,658.81,658.29,1.03752946]
[1751320066294,2.26745088,658.81,658.3,1.03752946]
[1751320066490,2.26745088,658.81,658.31,1.03752946]
[1751320066692,2.26745088,658.81,658.32,1.03752946]
[1751320066895,2.26745088,658.81,658.33,1.03752946]
[1751320067094,2.26745088,658.8,658.33,1.853]
[1751320067390,2.26745088,658.81,658.33,1.853]
[1751320067788,2.26745088,658.72,658.33,1.853]
[1751320069394,2.26745088,658.73,658.33,1.853]
[1751320070194,2.26745088,658.72,658.33,1.853]
[1751320072191,2.26745088,658.73,658.33,1.853]
[1751320074497,2.26745088,658.75,658.33,1.853]
[1751320074996,2.26745088,658.74,658.33,1.853]
[1751320077198,2.26745088,658.73,658.33,1.853]
[1751320077904,2.26745088,658.76,658.33,1.853]
[1751320079305,2.26745088,658.74,658.33,1.853]
[1751320080605,2.26745088,658.73,658.33,1.853]
[1751320082104,2.26745088,658.73,658.32,1.891]
[1751320082910,2.26745088,658.74,658.32,1.891]
[1751320083210,2.26745088,658.77,658.32,1.891]
[1751320084809,2.26745088,658.76,658.32,1.891]
[1751320085311,2.26745088,658.76,658.33,1.918]
[1751320087712,2.26745088,658.75,658.33,1.918]
[1751320088012,2.26745088,658.78,658.33,1.918]
[1751320089409,2.26745088,658.77,658.33,1.918]
[1751320090414,2.26745088,658.76,658.33,1.918]
[1751320090612,2.26745088,658.79,658.33,1.918]
[1751320091713,2.26745088,658.79,658.34,1.987]
[1751320091917,2.26745088,658.78,658.34,1.987]
[1751320092914,2.26745088,658.77,658.34,1.987]
[1751320093117,2.26745088,658.75,658.34,1.987]
[1751320097721,2.26745088,658.71,658.34,1.987]
[1751320099919,2.26745088,658.71,658.35,1.654]
[1751320101821,2.26745088,658.67,658.35,1.654]
[1751320104027,2.26745088,658.68,658.35,1.654]
[1751320105322,2.26745088,658.71,658.35,1.654]
[1751320106624,2.26745088,658.72,658.35,1.654]
[1751320106823,2.26745088,658.71,658.35,1.654]
[1751320107827,2.26745088,658.7,658.35,1.654]
[1751320110630,2.26745088,658.69,658.35,1.654]
[1751320111331,2.26745088,658.69,658.36,2.036]
[1751320111931,2.26745088,658.7,658.36,2.036]
[1751320114027,2.26745088,658.69,658.36,2.036]
[1751320114232,2.26745088,658.7,658.36,2.036]
[1751320114534,2.26745088,658.71,658.36,2.036]
[1751320115034,2.26745088,658.69,658.36,2.036]
[1751320118435,2.26745088,658.68,658.36,2.036]
[1751320119438,2.26745088,658.7,658.36,2.036]
[1751320119636,2.26745088,658.71,658.36,2.036]
[1751320120736,2.26745088,658.73,658.36,2.036]
[1751320121240,2.26745088,658.72,658.36,2.036]
[1751320121537,2.26745088,658.75,658.36,2.036]
[1751320121938,2.26745088,658.74,658.37,1.61]
[1751320124437,2.26745088,658.73,658.37,1.61]
[1751320126139,2.26745088,658.73,658.37,4.058]
[1751320129342,2.26745088,658.72,658.37,4.058]
[1751320129746,2.26745088,658.71,658.37,4.058]
[1751320131344,2.26745088,658.67,658.37,4.058]
[1751320133448,2.26745088,658.69,658.37,4.058]
[1751320133948,2.26745088,658.67,658.37,4.058]
[1751320134849,2.26745088,658.68,658.37,4.058]
[1751320135144,2.26745088,658.69,658.37,4.058]
[1751320135945,2.26745088,658.69,658.37,2.448]
[1751320137450,2.26745088,658.7,658.37,2.448]
[1751320139749,2.26745088,658.69,658.37,2.448]
[1751320140853,2.26745088,658.69,658.38,2.099]
[1751320141253,2.26745088,658.72,658.38,2.099]
[1751320141453,2.26745088,658.71,658.38,2.099]
[1751320141953,2.26745088,658.73,658.38,2.099]
[1751320143453,2.26745088,658.72,658.38,2.099]
[1751320144758,2.26745088,658.71,658.38,2.099]
[1751320144953,2.26745088,658.7,658.38,2.099]
[1751320147861,0.26425295,658.88,658.38,2.099]
[1751320147862,2.26745088,658.69,658.38,2.099]
[1751320148062,2.26745088,658.68,658.38,2.099]
[1751320150168,2.26745088,658.67,658.38,2.099]
[1751320150369,2.26745088,658.68,658.38,2.099]
[1751320150569,2.26745088,658.66,658.38,2.099]
[1751320150766,2.26745088,658.65,658.38,2.099]
[1751320151066,2.26745088,658.63,658.38,2.099]
[1751320151871,2.26745088,658.61,658.38,2.099]
[1751320153770,2.26745088,658.62,658.38,2.099]
[1751320153972,2.26745088,658.61,658.37,2.448]
[1751320157477,2.26745088,658.61,658.38,1.997]
[1751320158176,2.26745088,658.62,658.38,1.997]
[1751320158376,2.26745088,658.61,658.38,1.997]
[1751320158778,2.26745088,658.62,658.38,1.997]
[1751320160673,2.26745088,658.63,658.38,1.997]
[1751320163080,2.26745088,658.64,658.38,1.997]
[1751320163580,2.26745088,658.63,658.38,1.997]
[1751320163877,2.26745088,658.64,658.38,1.997]
[1751320165280,2.26745088,658.62,658.38,1.997]
[1751320167081,2.26745088,658.61,658.38,1.997]
[1751320167281,2.26745088,658.62,658.38,1.997]
[1751320169179,2.26745088,658.61,658.38,1.997]
[1751320178293,2.26745088,658.62,658.38,1.997]
[1751320180594,2.26745088,658.62,658.25,5.726]
[1751320182195,2.26745088,658.63,658.25,5.726]
[1751320182896,2.26745088,658.63,658.25,4.084]
[1751320183096,2.26745088,658.63,658.26,1.625]
[1751320184695,2.26745088,658.64,658.26,1.625]
[1751320185295,2.26745088,658.64,658.27,1.924]
[1751320185499,2.26745088,658.65,658.27,1.924]
[1751320190602,2.26745088,658.66,658.27,1.924]
[1751320191403,2.26745088,658.66,658.28,1.648]
[1751320191604,2.26745088,658.64,658.28,1.648]
[1751320192004,2.26745088,658.63,658.28,1.648]
[1751320192601,2.26745088,658.62,658.28,1.648]
[1751320193701,2.26745088,658.63,658.28,1.648]
[1751320195406,2.26745088,658.62,658.28,1.648]
[1751320199501,2.26745088,658.62,658.29,2.506]
[1751320200606,2.26745088,658.6,658.29,2.506]
[1751320206409,2.26745088,658.57,658.29,2.506]
[1751320207310,2.26745088,658.58,658.29,2.506]
[1751320210412,2.26745088,658.59,658.29,2.506]
[1751320210708,2.26745088,658.6,658.29,2.506]
[1751320214515,2.26745088,658.59,658.29,2.506]
[1751320228033,2.26745088,658.7,658.29,2.506]
[1751320228532,2.26745088,658.7,658.28,1.648]
[1751320232434,2.26745088,658.7,658.29,1.808]
[1751320236434,2.26745088,658.69,658.29,1.808]
[1751320237938,2.26745088,658.59,658.29,1.808]
[1751320240633,2.26745088,658.57,658.29,1.808]
[1751320243239,2.26745088,658.56,658.29,1.808]
[1751320246437,2.26745088,658.57,658.29,1.808]
[1751320248239,2.26745088,658.56,658.29,1.808]
[1751320248943,2.26745088,658.57,658.29,1.808]
[1751320250346,2.26745088,658.6,658.29,1.808]
[1751320250644,2.26745088,658.63,658.29,1.808]
[1751320250843,2.26745088,658.65,658.29,1.808]
[1751320254647,2.26745088,658.65,658.29,3.847]
[1751320255350,2.26745088,658.64,658.29,3.847]
[1751320256752,2.26745088,658.65,658.29,3.847]
[1751320257047,2.26745088,658.64,658.29,3.847]
[1751320258852,2.26745088,658.63,658.29,3.847]
[1751320259160,2.26745088,658.61,658.29,3.847]
[1751320259755,2.26745088,658.62,658.29,3.847]
[1751320260255,2.26745088,658.6,658.29,3.847]
[1751320260656,2.26745088,658.58,658.29,3.847]
[1751320262553,2.26745088,658.58,658.29,2.039]
[1751320264460,2.26745088,658.57,658.29,2.039]
[1751320265655,2.26745088,658.57,658.3,2.203]
[1751320266061,2.26745088,658.56,658.3,2.203]
[1751320266462,2.26745088,658.67,658.3,2.203]
[1751320266764,2.26745088,658.66,658.3,2.203]
[1751320269057,2.26745088,658.67,658.3,2.203]
[1751320270161,0.26431818,658.76,658.3,2.203]
[1751320270162,2.26745088,658.66,658.3,2.203]
[1751320270457,2.26745088,658.67,658.3,2.203]
[1751320272258,2.26745088,658.66,658.3,2.203]
[1751320276466,2.26745088,658.58,658.3,2.203]
[1751320277266,2.26745088,658.59,658.3,2.203]
[1751320278867,2.26745088,658.58,658.3,2.203]
[1751320279668,2.26745088,658.58,658.29,2.039]
[1751320280371,2.26745088,658.56,658.29,2.039]
[1751320280765,2.26745088,658.55,658.29,2.039]
[1751320281070,2.26745088,658.59,658.29,2.039]
[1751320283469,2.26745088,658.59,658.3,1.681]
[1751320284568,2.26745088,658.61,658.3,1.681]
[1751320289673,2.26745088,658.62,658.3,1.681]
[1751320290075,2.26745088,658.61,658.3,1.681]
[1751320290269,2.26745088,658.59,658.3,1.681]
[1751320290770,2.26745088,658.58,658.3,1.681]
[1751320290975,2.26745088,658.56,658.3,1.681]
[1751320292475,2.26745088,658.54,658.3,1.681]
[1751320294375,2.26745088,658.52,658.3,1.681]
[1751320294575,2.26745088,658.52,658.29,2.039]
[1751320296776,2.26745088,658.49,658.29,2.039]
[1751320297376,2.26745088,658.5,658.29,2.039]
[1751320297576,2.26745088,658.5,658.3,2.507]
[1751320300682,2.26745088,658.52,658.3,2.507]
[1751320301382,2.26745088,658.53,658.3,2.507]
[1751320302078,2.26745088,658.52,658.3,2.507]
[1751320302382,2.26745088,658.53,658.3,2.507]
[1751320303879,2.26745088,658.54,658.3,2.507]
[1751320308385,2.26745088,658.53,658.3,2.507]
[1751320310491,2.26745088,658.55,658.3,2.507]
[1751320310790,2.26745088,658.54,658.3,2.507]
[1751320311086,2.26745088,658.53,658.3,2.507]
[1751320312492,2.26745088,658.58,658.3,2.507]
[1751320313494,2.26745088,658.57,658.3,2.507]
[1751320319192,2.26745088,658.58,658.3,2.507]
[1751320320992,2.26745088,658.57,658.3,2.507]
[1751320322396,2.26745088,658.56,658.3,2.507]
[1751320322594,2.26745088,658.55,658.3,2.507]
[1751320322894,2.26745088,658.54,658.3,2.507]
[1751320323694,2.26745088,658.5,658.21,1.693]
[1751320324095,2.26745088,658.49,658.21,1.693]
[1751320324400,2.26745088,658.5,658.21,1.693]
[1751320324698,2.26745088,658.51,658.21,1.693]
[1751320325998,2.26745088,658.51,658.22,1.7]
[1751320327797,0.26431818,658.76,658.22,1.7]
[1751320327798,2.26745088,658.36,658.22,1.7]
[1751320328097,2.26745088,658.37,658.22,1.7]
[1751320328393,2.26745088,658.38,658.22,1.7]
[1751320329100,2.26745088,658.36,658.22,1.7]
[1751320329499,0.26431818,658.76,658.22,1.7]
[1751320329500,2.26745088,658.38,658.22,1.7]
[1751320330394,2.26745088,658.39,658.22,1.7]
[1751320331493,2.26745088,658.4,658.22,1.7]
[1751320332398,2.26745088,658.39,658.22,1.7]
[1751320333494,2.26745088,658.4,658.22,1.7]
[1751320334000,2.26745088,658.39,658.22,1.7]
[1751320336600,0.26431818,658.76,658.22,1.7]
[1751320336601,2.26745088,658.4,658.22,1.7]
[1751320337501,2.26745088,658.41,658.22,1.7]
[1751320339498,2.26745088,658.47,658.22,1.7]
[1751320340801,2.26745088,658.48,658.22,1.7]
[1751320342102,2.26745088,658.48,658.17,2.416]
[1751320345198,2.26745088,658.48,658.18,2.062]
[1751320349305,2.26745088,658.43,658.18,2.062]
[1751320349608,2.26745088,658.41,658.18,2.062]
[1751320350409,2.26745088,658.4,658.18,2.062]
[1751320354611,2.26745088,658.61,658.18,2.062]
[1751320355308,2.26745088,658.47,658.18,2.062]
[1751320356108,2.26745088,658.46,658.18,2.062]
[1751320356310,2.26745088,658.45,658.18,2.062]
[1751320356511,2.26745088,658.46,658.18,2.062]
[1751320357511,2.26745088,658.48,658.18,2.062]
[1751320357713,2.26745088,658.44,658.18,2.062]
[1751320357911,2.26745088,658.37,658.18,2.062]
[1751320358517,2.26745088,658.39,658.18,2.062]
[1751320359417,2.26745088,658.4,658.18,2.062]
[1751320360113,2.26745088,658.38,658.18,2.062]
[1751320360315,2.26745088,658.38,658.17,2.416]
[1751320360515,2.26745088,658.39,658.17,2.416]
[1751320361617,2.26745088,658.4,658.17,2.416]
[1751320361816,2.26745088,658.36,658.17,2.416]
[1751320362416,2.26745088,658.37,658.17,2.416]
[1751320363416,2.26745088,658.38,658.18,2.417]
[1751320363613,2.26745088,658.4,658.18,2.417]
[1751320365219,0.26431818,658.76,658.18,2.417]
[1751320365220,2.26745088,658.39,658.18,2.417]
[1751320365721,2.26745088,658.4,658.18,2.417]
[1751320366721,2.26745088,658.41,658.18,2.417]
[1751320367123,2.26745088,658.4,658.18,2.417]
[1751320367319,2.26745088,658.41,658.18,2.417]
[1751320367523,0.26447587,658.36,658.18,2.417]
[1751320375332,2.26745088,658.35,658.18,2.417]
[1751320375532,2.53192675,658.36,658.18,2.417]
[1751320376335,2.26745088,658.25,658.18,2.417]
[1751320376536,0.26447587,658.36,658.18,2.417]
[1751320376537,2.26745088,658.24,658.18,2.417]
[1751320377236,2.26745088,658.25,658.18,2.417]
[1751320378437,2.26745088,658.25,658.0,2.095]
[1751320380338,2.26745088,658.24,658.0,2.095]
[1751320380838,2.26745088,658.24,658.01,2.55]
[1751320381042,2.26745088,658.23,658.01,2.55]
[1751320381341,2.26745088,658.24,658.01,2.55]
[1751320381742,2.26745088,658.23,658.01,2.55]
[1751320381937,0.26447587,658.36,658.01,2.55]
[1751320381938,2.26745088,658.24,658.01,2.55]
[1751320383143,2.26745088,658.26,658.01,2.55]
[1751320383642,2.26745088,658.25,658.01,2.55]
[1751320383943,2.26745088,658.26,658.01,2.55]
[1751320384145,2.26745088,658.28,658.01,2.55]
[1751320385344,2.26745088,658.29,658.01,2.55]
[1751320386541,2.26745088,658.28,658.01,2.55]
[1751320387542,2.26745088,658.27,658.01,2.55]
[1751320388246,2.26745088,658.28,658.01,2.55]
[1751320388948,2.26745088,658.27,658.01,2.55]
[1751320389249,2.26745088,658.28,658.01,2.55]
[1751320390148,2.26745088,658.29,658.01,2.55]
[1751320390952,2.26745088,658.31,658.01,2.55]
[1751320391247,2.26745088,658.32,658.01,2.55]
[1751320391453,2.26745088,658.31,658.01,2.55]
[1751320392555,2.26745088,658.3,658.01,2.55]
[1751320392856,2.26745088,658.29,658.01,2.55]
[1751320394156,2.26745088,658.27,658.01,2.55]
[1751320395054,2.26745088,658.27,658.0,2.095]
[1751320395253,2.26745088,658.26,658.0,2.095]
[1751320395653,2.26745088,658.23,658.0,2.095]
[1751320396358,2.26745088,658.24,658.0,2.095]
[1751320396554,2.26745088,658.23,658.0,2.095]
[1751320398360,2.26745088,658.22,658.0,2.095]
[1751320398558,2.26745088,658.21,658.0,2.095]
[1751320398861,2.26745088,658.21,658.01,1.588]
[1751320399261,2.26745088,658.2,658.01,1.588]
[1751320400063,2.26745088,658.19,658.01,1.588]
[1751320400764,2.26745088,658.13,658.01,1.588]
[1751320402265,0.26447587,658.36,658.01,1.588]
[1751320402266,2.26745088,658.16,658.01,1.588]
[1751320402565,2.26745088,658.15,658.01,1.588]
[1751320403465,2.26745088,658.14,658.01,1.588]
[1751320403665,2.26745088,658.19,658.01,1.588]
[1751320404366,2.26745088,658.18,658.01,1.588]
[1751320404566,2.26745088,658.19,658.01,1.588]
[1751320404766,2.26745088,658.18,658.01,1.588]
[1751320405367,2.26745088,658.16,658.01,1.588]
[1751320405563,2.26745088,658.15,658.01,1.588]
[1751320405965,2.26745088,658.17,658.01,1.588]
[1751320406570,2.26745088,658.16,658.01,1.588]
[1751320406870,2.26745088,658.19,658.01,1.588]
[1751320407066,2.26745088,658.16,658.01,1.588]
[1751320407371,2.26745088,658.15,658.01,1.588]
[1751320407571,2.26745088,658.11,658.01,1.588]
[1751320408371,2.26745088,658.1,658.01,1.588]
[1751320408572,2.26745088,658.06,658.01,1.588]
[1751320409169,2.26745088,658.07,658.01,1.588]
[1751320409569,2.26745088,658.05,658.01,1.588]
[1751320410175,2.26745088,658.06,658.01,1.588]
[1751320410370,2.26745088,658.04,658.01,1.588]
[1751320411171,2.26745088,658.02,658.01,1.588]
[1751320411676,0.26447587,658.36,658.01,1.588]
[1751320415273,2.26433506,658.03,658.01,1.588]
[1751320415572,2.26433506,658.02,658.01,1.588]
[1751320416178,0.26447587,658.36,658.01,1.588]
[1751320416378,2.26432101,658.02,658.01,1.588]
[1751320416575,0.26447587,658.36,658.01,1.588]
[1751320416779,0.26447587,658.36,658.01,0.12125693]
[1751320416979,0.26447587,658.36,657.89,2.329]
[1751320417279,2.26441396,657.97,657.79,2.32]
[1751320418675,2.26441396,657.99,657.79,2.32]
[1751320419180,2.26441396,658.0,657.79,2.32]
[1751320419475,2.26441396,657.99,657.79,2.32]
[1751320420076,2.26441396,658.0,657.79,2.32]
[1751320420981,2.26441396,657.99,657.79,2.32]
[1751320421177,2.26441396,658.0,657.79,2.32]
[1751320421380,2.26441396,657.99,657.79,2.32]
[1751320421681,2.26441396,657.94,657.79,2.32]
[1751320421982,2.26441396,657.95,657.79,2.32]
[1751320422381,2.26441396,657.94,657.79,2.32]
[1751320422882,2.26441396,657.96,657.79,2.32]
[1751320424382,0.26447587,658.36,657.79,2.32]
[1751320424383,2.26441396,657.97,657.79,2.32]
[1751320425578,2.26441396,657.98,657.79,2.32]
[1751320427482,2.26441396,657.97,657.79,2.32]
[1751320428688,2.26441396,657.95,657.79,2.32]
[1751320429389,2.26441396,657.94,657.79,2.32]
[1751320430489,2.26441396,657.93,657.79,2.32]
[1751320431490,2.26441396,657.92,657.79,2.32]
[1751320432187,2.26441396,657.92,657.64,2.129]
[1751320432486,2.26441396,657.91,657.64,2.129]
[1751320432686,2.26441396,657.89,657.64,2.129]
[1751320434390,2.26441396,657.85,657.64,2.129]
[1751320435391,3.78478812,658.28,657.64,2.129]
[1751320435392,2.26441396,657.86,657.64,2.129]
[1751320436394,2.26441396,657.85,657.64,2.129]
[1751320439896,2.26441396,657.98,657.64,2.129]
[1751320440293,2.26441396,658.08,657.64,2.129]
[1751320440794,2.26441396,658.06,657.64,2.129]
[1751320441296,2.26441396,658.04,657.64,2.129]
[1751320441597,2.26441396,658.03,657.64,2.129]
[1751320441796,2.26441396,658.04,657.64,2.129]
[1751320441992,2.26441396,658.02,657.64,2.129]
[1751320442797,2.26441396,657.98,657.64,2.129]
[1751320442997,2.26441396,657.94,657.64,2.129]
[1751320443198,2.26441396,657.95,657.64,2.129]
[1751320443397,2.26441396,658.15,657.64,2.129]
[1751320443999,2.26441396,657.74,657.64,2.129]
[1751320444200,2.26441396,657.69,657.64,2.129]
[1751320444399,2.26441396,657.71,657.64,2.129]
[1751320444598,2.26441396,657.69,657.64,2.129]
[1751320445300,2.26441396,657.71,657.64,2.129]
[1751320445497,2.26441396,657.72,657.53,2.421]
[1751320445697,2.26441396,657.7,657.53,2.421]
[1751320445898,2.26441396,657.68,657.53,2.421]
[1751320446300,0.26447587,658.36,657.53,2.421]
[1751320446301,2.26441396,657.7,657.53,2.421]
[1751320446699,2.26441396,657.56,657.53,2.421]
[1751320447004,2.26441396,657.55,657.53,2.421]
[1751320447200,2.26441396,657.57,657.53,2.421]
[1751320447404,2.26441396,657.56,657.53,2.421]
[1751320447604,1.13175875,657.56,657.53,2.421]
[1751320447904,1.13175875,657.54,657.53,2.421]
[1751320448202,1.13175875,657.55,657.53,2.421]
[1751320448505,1.50901167,657.63,657.53,2.421]
[1751320448706,1.50901167,657.62,657.53,2.421]
[1751320448906,1.50901167,657.59,657.53,2.421]
[1751320449105,1.50901167,657.59,657.49,2.423]
[1751320449303,1.50901167,657.58,657.49,2.423]
[1751320449504,2.26228487,657.51,657.49,2.423]
[1751320449703,2.26228487,657.51,657.37,1.629]
[1751320450008,1.13151417,657.46,657.37,1.629]
[1751320451011,1.13151417,657.44,657.37,1.629]
[1751320452211,1.13151417,657.45,657.37,1.629]
[1751320452608,1.13151417,657.46,657.37,1.629]
[1751320453214,1.13151417,657.47,657.37,1.629]
[1751320455413,1.13151417,657.45,657.37,1.629]
[1751320455613,1.13151417,657.46,657.37,1.629]
[1751320455913,0.26447587,658.36,657.37,1.629]
[1751320455914,2.26228487,657.45,657.37,1.629]
[1751320456214,2.26228487,657.46,657.37,1.629]
[1751320456413,2.26228487,657.45,657.37,1.629]
[1751320456613,2.26228487,657.44,657.37,1.629]
[1751320456815,2.26228487,657.43,657.37,1.629]
[1751320457015,2.26228487,657.43,657.28,2.278]
[1751320457312,1.50492607,657.3,657.28,2.278]
[1751320458213,1.50492607,657.32,657.28,2.278]
[1751320458717,1.50492607,657.33,657.28,2.278]
[1751320458912,5.56317925,658.36,657.28,2.278]
[1751320458913,1.50492607,657.31,657.28,2.278]
[1751320459215,1.50492607,657.33,657.28,2.278]
[1751320460214,1.50492607,657.35,657.28,2.278]
[1751320461117,1.50492607,657.37,657.28,2.278]
[1751320461817,1.50492607,657.36,657.28,2.278]
[1751320462213,1.50492607,657.38,657.28,2.278]
[1751320463216,1.50492607,657.39,657.25,1.842]
[1751320464223,1.50492607,657.4,657.25,1.842]
[1751320464719,1.50492607,657.37,657.25,1.842]
[1751320465022,1.50492607,657.36,657.25,1.842]
[1751320465220,1.50492607,657.37,657.25,1.842]
[1751320465424,1.12492454,657.27,657.25,1.842]
[1751320465723,1.12492454,657.26,657.25,1.842]
[1751320466125,1.50492607,657.37,657.25,1.842]
[1751320466326,1.12466436,657.26,657.25,1.842]
[1751320466926,1.50492607,657.36,657.25,1.842]
[1751320467222,1.12444468,657.26,657.25,1.842]
[1751320468325,1.12444468,657.27,657.25,1.842]
[1751320470223,1.12444468,657.28,657.25,1.842]
[1751320471227,1.12444468,657.29,657.25,1.842]
[1751320472825,1.12444468,657.3,657.25,1.842]
[1751320473930,1.12444468,657.31,657.25,1.842]
[1751320474128,1.50492607,657.66,657.25,1.842]
[1751320475432,1.50492607,657.67,657.25,1.842]
[1751320477335,1.50492607,657.68,657.25,1.842]
[1751320478431,1.50492607,657.68,657.26,2.407]
[1751320478836,1.50492607,657.7,657.26,2.407]
[1751320480234,1.50492607,657.71,657.26,2.407]
[1751320482237,1.50492607,657.7,657.26,2.407]
[1751320483937,1.50492607,657.69,657.26,2.407]
[1751320484137,1.50492607,657.68,657.26,2.407]
[1751320485238,1.50492607,657.67,657.26,2.407]
[1751320485541,1.50492607,657.72,657.26,2.407]
[1751320485836,1.50492607,657.73,657.26,2.407]
[1751320486240,1.50492607,657.72,657.26,2.407]
[1751320486440,1.50492607,657.71,657.26,2.407]
[1751320487238,1.50492607,657.7,657.26,2.407]
[1751320488242,1.50492607,657.69,657.26,2.407]
[1751320489240,1.50492607,657.67,657.26,2.407]
[1751320489545,1.50492607,657.7,657.26,2.407]
[1751320489742,1.50492607,657.83,657.26,2.407]
[1751320490238,1.50492607,657.82,657.26,2.407]
[1751320490438,1.50492607,657.8,657.26,2.407]
[1751320491338,1.50492607,657.79,657.26,2.407]
[1751320492145,1.50492607,657.78,657.26,2.407]
[1751320493042,1.50492607,657.77,657.26,2.407]
[1751320493245,3.78478812,658.56,657.26,2.407]
[1751320493246,1.50492607,657.76,657.26,2.407]
[1751320494148,1.50492607,657.74,657.26,2.407]